[Event "45th FIDE Olympiad 2024"]
[Site "Budapest"]
[Date "2024.09.16"]
[Round "6.35"]
[White "Mamedyarov, Shakhriyar"]
[Black "Kazakouski, Valery"]
[Result "1-0"]
[ECO "A04"]
[WhiteElo "2733"]
[BlackElo "2577"]
[Annotator "TA"]
[PlyCount "85"]
[EventDate "2024.09.05"]
[EventType "team-tourn"]
[EventCountry "HUN"]
[SourceTitle "playchess.com"]
[Source "ChessBase"]
[SourceQuality "1"]
[WhiteTeam "Azerbaijan"]
[BlackTeam "Lithuania"]
[WhiteTeamCountry "AZE"]
[BlackTeamCountry "LTU"]
[TimeControl "40/5400+30:1800+30"]

{[%evp 24,85,-13,-12,-14,-16,36,29,60,51,62,48,43,30,48,46,42,41,56,44,47,46,45,46,50,38,56,51,60,53,67,60,143,84,112,77,86,72,61,81,76,80,355,362,355,354,461,480,480,465,450,302,309,319,456,440,433,439,604,602,625,614,614,579]} 1. Nf3 {[%emt 0:00:03]} Nf6 {[%emt 0:00:18]} 2. g3 {[%emt 0:00:10]} c5 {[%emt 0:00:36]} 3. Bg2 {[%emt 0:00:27]} Nc6 {[%emt 0:00:15]} 4. O-O {[%emt 0:01:09]} e5 {[%emt 0:00:14]} 5. e4 {[%emt 0:01:40]} d6 {[%emt 0:00:16]} 6. Re1 {[%emt 0:00:44]} Be7 {[%emt 0:03:17]} 7. c3 {[%emt 0:03:11] A04: Unusual lines after 1 Nf3 and King's Indian Attack.} O-O {[%emt 0:01:27]} 8. h3 {[%emt 0:03:22]} Be6 {[%emt 0:06:32]} 9. Na3 {[%emt 0:00:51]} h6 {[%emt 0:10:58]} 10. d3 {[%emt 0:04:34]} Qd7 {[%emt 0:06:08]} 11. Kh2 {[%emt 0:00:07]} Rfe8 $146 {[%emt 0:00:30]} ({Predecessor:} 11... Rad8 12. Nc4 Qc7 13. a4 Nxe4 14. Ne3 Nxf2 15. Qe2 Nxd3 16. Qxd3 d5 17. Qe2 e4 {0-1 Eraclides,G (1530)-Cvak,R (1722) SD-2014-0-00201}) 12. Nc2 {[%emt 0:02:24]} b5 {[%emt 0:05:37]} 13. Ne3 {[%emt 0:11:25]} Bf8 {[%emt 0:08:07]} 14. a4 {[%emt 0:03:41]} bxa4 {[%emt 0:17:07]} (14... b4 $11) 15. Qxa4 {[%emt 0:02:29]} Qb7 {[%emt 0:01:35]} 16. Nd2 {[%emt 0:04:37]} Nd7 {[%emt 0:04:20]} 17. Nd5 {[%emt 0:04:48]} Nb6 {[%emt 0:02:11]} 18. Qa6 {[%emt 0:03:56]} Rab8 {[%emt 0:05:20]} 19. Nf1 {[%emt 0:02:25]} Ne7 {[%emt 0:02:11]} 20. Nfe3 {[%emt 0:03:51]} Qxa6 {[%emt 0:02:38]} 21. Rxa6 {[%emt 0:00:28]} Rb7 {[%emt 0:00:26]} 22. Bd2 {[%emt 0:04:02]} Nexd5 {[%emt 0:01:02]} 23. exd5 {[%emt 0:00:15]} Bd7 {[%emt 0:00:23]} 24. Ra2 {[%emt 0:08:33]} Be7 {[%emt 0:03:18]} 25. Rea1 {[%emt 0:00:59]} Ra8 {[%emt 0:01:15]} 26. h4 {[%emt 0:02:06]} h5 {[%emt 0:00:38]} 27. c4 {[%emt 0:04:53]} Be8 {[%emt 0:03:23]} (27... Bf8 $14) 28. Bc3 {[%emt 0:05:58]} (28. b4 $142 {Hoping for bxc5.} Nd7 29. b5) 28... Bd8 {[%emt 0:05:15]} 29. Bxe5 {[%emt 0:01:46]} dxe5 {[%emt 0:01:33]} 30. d6 {[%emt 0:00:05]} Rab8 {[%emt 0:03:53]} (30... e4 $2 31. Bxe4 Rbb8 32. Bxa8 $18 (32. Rxa7 $2 Rxa7 33. Rxa7 Kf8 $19)) 31. Bxb7 {[%emt 0:00:13]} Rxb7 {[%emt 0:00:02]} 32. Rxa7 {[%emt 0:00:08]} Rb8 $2 {[%emt 0:00:52][%mdl 8192]} (32... Bc6 $16 {is a better defense.}) 33. b4 $18 {[%emt 0:01:57]} cxb4 {[%emt 0:02:00]} 34. c5 {[%emt 0:00:05]} b3 {[%emt 0:01:44]} 35. cxb6 {[%emt 0:01:40]} b2 {[%emt 0:00:46]} 36. Rb1 {[%emt 0:00:25]} (36. d7 Bxd7 37. Rb1 Bc6 38. Rxb2 Rxb6 39. Rxb6 Bxb6 $18) 36... Bxb6 {[%emt 0:00:09]} 37. Re7 {[%emt 0:00:09]} (37. Rxb2 $2 Bxa7 38. Ra2 Bxe3 39. fxe3 Rd8 $19) 37... Bxe3 {[%emt 0:02:11]} 38. fxe3 {[%emt 0:00:24]} Ba4 {[%emt 0:00:23]} (38... f6 $142 39. Rc7 (39. d7 Bg6 $18) 39... Bf7) 39. Rxe5 $18 {[%emt 0:00:50]} (39. d7 Kf8 40. Re8+ (40. Rxe5 Bxd7 41. Ra5 Rb3 $16) 40... Rxe8 41. dxe8=N (41. dxe8=Q+ Kxe8 42. d4 Ke7 $18) (41. dxe8=B Kxe8 42. Rxb2 Kd7 $18) 41... Kxe8 42. Rxb2 Kd7 $18) 39... f6 {[%emt 0:00:35]} ({But not} 39... Bc2 40. d7 Ba4 41. Re8+ (41. Rxh5 Bxd7 42. Rc5 Rb3 $18) 41... Rxe8 42. dxe8=B (42. dxe8=Q+ Bxe8 43. Rxb2 Kf8 $18) 42... Bxe8 43. Rxb2) 40. Rc5 {[%emt 0:00:25]} ({Weaker is} 40. Rxh5 Bc2 41. Rc5 Bxb1 $11) 40... Rb3 {[%emt 0:00:34]} 41. Rc4 {[%emt 0:37:05]} Bb5 {[%emt 0:04:44]} 42. Rc2 {[%emt 0:00:00]} Rxd3 {[%emt 0:01:25]} 43. Rbxb2 {[%emt 0:00:00]} (43. Rcxb2 Bc6 44. Rc2 Bf3 $18) 1-0

[Event "45th FIDE Olympiad 2024"]
[Site "Budapest"]
[Date "2024.09.16"]
[Round "6.35"]
[White "Zaw, Ye Htut"]
[Black "Gumireddy, Sanjay"]
[Result "1-0"]
[WhiteElo "1815"]
[BlackElo "1907"]
[PlyCount "61"]
[EventDate "2024.09.05"]
[EventType "team-tourn"]
[EventCountry "HUN"]
[WhiteTeam "Myanmar"]
[BlackTeam "Isle of Man"]
[WhiteTeamCountry "MYA"]
[BlackTeamCountry "IOM"]
[TimeControl "40/5400+30:1800+30"]

1. e4 d6 2. d4 Nf6 3. Nc3 Nbd7 4. Nf3 e5 5. dxe5 dxe5 6. Bc4 Bb4 7. O-O c6 8. a3 Bxc3 9. bxc3 O-O 10. Re1 Qa5 11. Ba2 b6 12. Bg5 Bb7 13. Bxf6 Nxf6 14. Qd6 Qxc3 15. Nxe5 Rae8 16. Nxf7 Rxf7 17. Qc7 Nd5 18. Bxd5 Qxe1+ 19. Rxe1 cxd5 20. Qc3 dxe4 21. f3 Rc8 22. Qb3 exf3 23. gxf3 Kf8 24. Qb4+ Rc5 25. Re5 Rfc7 26. Rxc5 Rxc5 27. Qf4+ Ke7 28. Qb8 Bxf3 29. Qxa7+ Kf6 30. Qxb6+ Rc6 31. Qf2 1-0

[Event "45th FIDE Olympiad 2024"]
[Site "Budapest"]
[Date "2024.09.16"]
[Round "6.36"]
[White "Laurusas, Tomas"]
[Black "Muradli, Mahammad"]
[Result "1-0"]
[ECO "D24"]
[WhiteElo "2569"]
[BlackElo "2576"]
[Annotator "TA"]
[PlyCount "69"]
[EventDate "2024.09.05"]
[EventType "team-tourn"]
[EventCountry "HUN"]
[SourceTitle "playchess.com"]
[Source "ChessBase"]
[SourceQuality "1"]
[WhiteTeam "Lithuania"]
[BlackTeam "Azerbaijan"]
[WhiteTeamCountry "LTU"]
[BlackTeamCountry "AZE"]
[TimeControl "40/5400+30:1800+30"]

{[%evp 10,69,9,10,6,12,18,0,12,0,0,0,14,0,4,7,24,0,0,1,0,-14,-15,-51,-43,-37,-30,-35,-15,-18,-36,-18,-14,-39,-35,-12,-15,-158,741,0,0,-93,0,-5,8,9,0,-78,0,0,0,0,0,0,0,0,898,894,853,837,29993,29994]} 1. d4 {[%emt 0:00:01]} Nf6 {[%emt 0:00:38]} 2. c4 {[%emt 0:00:09]} e6 {[%emt 0:00:04]} 3. Nf3 {[%emt 0:00:09]} d5 {[%emt 0:00:06]} 4. Nc3 {[%emt 0:00:08]} dxc4 {[%emt 0:00:29]} 5. e3 {[%emt 0:00:07]} a6 {[%emt 0:00:09]} 6. a4 {[%emt 0:00:07]} b6 {[%emt 0:01:59] D24: Queen's Gambit Accepted: 3 Nf3 Nf6 4 Nc3.} 7. Bxc4 {[%emt 0:03:18]} Bb7 {[%emt 0:00:07]} 8. O-O {[%emt 0:00:22][%cal Oe3e4]} Bb4 {[%emt 0:00:35]} 9. Qc2 $5 {[%emt 0:05:26][%mdl 4] Exploring less charted territory.} O-O {[%emt 0:02:23]} 10. Rd1 $146 {[%emt 0:00:28]} ({Predecessor:} 10. Be2 Nbd7 11. b3 Rc8 12. Bb2 c5 13. Rfd1 cxd4 14. Rxd4 Bc5 15. Rdd1 Qc7 16. Rac1 {½-½ Haug,J (2328)-Schroeder,J (2539) Helsingor Xtracon op 2017 (8)}) 10... Qe7 {[%emt 0:01:44]} 11. b3 {[%emt 0:00:21]} Rd8 {[%emt 0:13:55]} 12. Bb2 {[%emt 0:01:23]} h6 {[%emt 0:11:22]} 13. h3 {[%emt 0:26:12]} Nc6 {[%emt 0:11:03]} 14. d5 {[%emt 0:07:13]} Na5 {[%emt 0:03:06]} 15. e4 {[%emt 0:00:07]} exd5 {[%emt 0:06:12]} 16. exd5 {[%emt 0:14:46]} Nxc4 $1 {[%emt 0:08:16]} 17. bxc4 {[%emt 0:00:33]} c6 {[%emt 0:00:35][%cal Rc6d5]} 18. Re1 {[%emt 0:29:45]} Qc7 {[%emt 0:07:03][%cal Rc6d5]} 19. Ne4 $1 {[%emt 0:00:06]} Nxe4 {[%emt 0:04:20]} (19... cxd5 $6 20. Nxf6+ gxf6 21. Bxf6 Bxe1 (21... Qxc4 $2 22. Qf5 $18) 22. Rxe1 $16) 20. Rxe4 {[%emt 0:00:02][%cal Ob2g7]} cxd5 {[%emt 0:00:17]} 21. Rg4 {[%emt 0:00:06]} Bf8 {[%emt 0:00:13]} 22. Be5 {[%emt 0:00:18]} Qd7 {[%emt 0:05:48]} 23. Nd4 {[%emt 0:05:36]} (23. Rd1 $1 $11) 23... g6 $2 {[%emt 0:07:56]} (23... dxc4 $17 24. Rb1 g5) 24. Rb1 $2 {[%emt 0:04:46]} (24. Rxg6+ $1 $18 fxg6 25. Qxg6+ Bg7 26. Nf5) 24... Qe8 {[%emt 0:10:52]} 25. f4 {[%emt 0:00:54]} (25. Nf3 $11 Bc8 26. Rf4) 25... Bc5 {[%emt 0:00:02]} (25... Bc8 $1 $17 {[%cal Rc8g4]} 26. Rg3 Bc5) 26. Kh2 $11 {[%emt 0:00:27] Hoping for Nf5.} dxc4 {[%emt 0:00:24]} 27. Nf5 {[%emt 0:00:13]} h5 {[%emt 0:02:49]} 28. Ng7 {[%emt 0:00:13] [#]} (28. Rg5 $11 {remains equal.} Rd5 29. Nh6+ Kf8 30. Qc3) 28... Qd7 {[%emt 0:00:35]} (28... Qxe5 $1 $17 29. fxe5 hxg4) 29. Nxh5 {[%emt 0:00:32][%cal Og4g6]} Qd3 {[%emt 0:00:10]} 30. Qc1 {[%emt 0:01:04] Dancing on a razor blade.} Kf8 {[%emt 0:01:20]} 31. Nf6 {[%emt 0:00:29] Threatens to win with Qe1.} Rac8 {[%emt 0:00:51][%cal Oc4c3]} 32. Qe1 {[%emt 0:00:33] Black must now prevent Nh7+.} Rc6 $2 {[%emt 0:00:34][%mdl 8192] [#]} (32... Bf2 $11 33. Nh7+ (33. Qxf2 Qxb1 34. Nh7+ Ke8 $11) 33... Ke8 34. Qxf2 Qxb1 35. Nf6+ Kf8 (35... Ke7 36. Qh4 $11) 36. Nh7+ Ke8 37. Nf6+ Kf8 (37... Ke7 38. Qh4 $11) 38. Nh7+ Ke8) 33. Rh4 $1 $18 {[%emt 0:00:32] White threatens Rh8+ and mate.} Re6 {[%emt 0:00:31] [#]} 34. Rd1 $3 {[%emt 0:00:22][%mdl 512]} Rxe5 {[%emt 0:00:31]} (34... Ke7 35. Rxd3) 35. Qxe5 {[%emt 0:00:30]} 1-0

[Event "45th FIDE Olympiad 2024"]
[Site "Budapest"]
[Date "2024.09.16"]
[Round "6.36"]
[White "Miah, Zahed"]
[Black "Linn, Phone Myat"]
[Result "0-1"]
[WhiteElo "1895"]
[BlackElo "1763"]
[PlyCount "52"]
[EventDate "2024.09.05"]
[EventType "team-tourn"]
[EventCountry "HUN"]
[WhiteTeam "Isle of Man"]
[BlackTeam "Myanmar"]
[WhiteTeamCountry "IOM"]
[BlackTeamCountry "MYA"]
[TimeControl "40/5400+30:1800+30"]

1. d4 Nf6 2. c4 e6 3. Nf3 Bb4+ 4. Nbd2 b6 5. a3 Bxd2+ 6. Bxd2 Ne4 7. e3 Bb7 8. Bd3 d6 9. Qc2 f5 10. b4 Nd7 11. O-O O-O 12. Ne1 Qh4 13. f3 Ng5 14. Bc3 Rf6 15. g3 Qh5 16. Qg2 Raf8 17. Ra2 Rh6 18. e4 fxe4 19. fxe4 Rxf1+ 20. Kxf1 Nf6 21. d5 Ng4 22. Kg1 e5 23. h4 Nf7 24. Nf3 Rf6 25. Re2 Ngh6 26. Bd2 Qxf3 {0-} 0-1

[Event "45th FIDE Olympiad 2024"]
[Site "Budapest"]
[Date "2024.09.16"]
[Round "6.37"]
[White "Mchedlishvili, Mikheil"]
[Black "Shirov, Alexei"]
[Result "1-0"]
[ECO "A14"]
[WhiteElo "2574"]
[BlackElo "2666"]
[Annotator "RC"]
[PlyCount "49"]
[EventDate "2024.09.05"]
[EventType "team-tourn"]
[EventCountry "HUN"]
[SourceTitle "playchess.com"]
[Source "ChessBase"]
[SourceQuality "1"]
[WhiteTeam "Georgia"]
[BlackTeam "Spain"]
[WhiteTeamCountry "GEO"]
[BlackTeamCountry "ESP"]
[TimeControl "40/5400+30:1800+30"]

1. Nf3 {[%emt 0:00:07]} d5 {[%emt 0:00:17]} 2. c4 {[%emt 0:00:30]} e6 {[%emt 0:00:05]} 3. g3 {[%emt 0:04:41]} Nf6 {[%emt 0:00:12]} 4. Bg2 {[%emt 0:00:52]} Be7 {[%emt 0:00:05]} 5. O-O {[%emt 0:03:05]} O-O {[%emt 0:00:06]} 6. b3 {[%emt 0:00:39]} d4 {[%emt 0:02:08]} 7. e3 {[%emt 0:01:08]} c5 {[%emt 0:00:03]} 8. Ne5 {[%emt 0:02:46]} Ne8 {[%emt 0:09:07]} 9. f4 {[%emt 0:11:06]} Nd7 {[%emt 0:02:04]} 10. Bb2 {[%emt 0:08:19]} Nxe5 {[%emt 0:18:15]} 11. fxe5 {[%emt 0:00:09]} f5 {[%emt 0:00:08]} 12. exd4 {[%emt 0:08:59]} cxd4 {[%emt 0:00:03]} 13. d3 {[%emt 0:00:53]} Rf7 {[%emt 0:09:17]} 14. Na3 {[%emt 0:10:16]} Bf8 {[%emt 0:18:12]} 15. Nc2 {[%emt 0:01:46]} Rd7 {[%emt 0:00:05]} 16. b4 {[%emt 0:07:42]} a5 {[%emt 0:01:12]} 17. a3 {[%emt 0:00:33]} g5 {[%emt 0:03:32]} 18. Qd2 {[%emt 0:04:04]} Bg7 {[%emt 0:08:07]} 19. Qf2 {[%emt 0:03:01]} Bxe5 {[%emt 0:09:12]} 20. Qe2 {[%emt 0:02:00]} Bf6 {[%emt 0:00:35]} 21. Qxe6+ {[%emt 0:01:30]} Rf7 {[%emt 0:00:15]} 22. Qd5 {[%emt 0:00:47]} Bd7 {[%emt 0:04:50]} 23. Qxb7 {[%emt 0:02:52]} Rb8 {[%emt 0:00:05]} 24. Qd5 {[%emt 0:01:39]} Ba4 {[%emt 0:03:41]} 25. Rac1 {[%emt 0:03:48]} 1-0

[Event "45th FIDE Olympiad 2024"]
[Site "Budapest"]
[Date "2024.09.16"]
[Round "6.37"]
[White "Alrehaili, Ahmed Abdullah S"]
[Black "Tchouka, Yakini"]
[Result "1-0"]
[WhiteElo "2117"]
[BlackElo "1932"]
[PlyCount "64"]
[EventDate "2024.09.05"]
[EventType "team-tourn"]
[EventCountry "HUN"]
[WhiteTeam "Saudi Arabia"]
[BlackTeam "Togo"]
[WhiteTeamCountry "SAU"]
[BlackTeamCountry "TOG"]
[TimeControl "40/5400+30:1800+30"]

1. e4 c5 2. Nf3 d6 3. c3 Nf6 4. h3 Nc6 5. Bd3 g6 6. O-O Bg7 7. Bc2 O-O 8. d4 cxd4 9. cxd4 d5 10. e5 Ne4 11. Re1 f6 12. exf6 Nxf6 13. Nc3 Kh8 14. Bg5 e6 15. Qd2 Qb6 16. Ba4 Ng8 17. Bxc6 bxc6 18. Na4 Qc7 19. Ne5 Nf6 20. Qf4 Kg8 21. Qh4 Ne4 22. Bh6 c5 23. Bxg7 Kxg7 24. Nxc5 Nxc5 25. Rac1 Qa5 26. Qe7+ Kg8 27. Ng4 Nd7 28. Rxe6 Qd2 29. Rc7 Qf4 30. Rf6 Rxf6 31. Rxd7 Qc1+ 32. Kh2 Qf4+ 1-0

[Event "45th FIDE Olympiad 2024"]
[Site "Budapest"]
[Date "2024.09.16"]
[Round "6.38"]
[White "Anton Guijarro, David"]
[Black "Kacharava, Nikolozi"]
[Result "1/2-1/2"]
[ECO "C78"]
[WhiteElo "2665"]
[BlackElo "2511"]
[Annotator "TA"]
[PlyCount "73"]
[EventDate "2024.09.05"]
[EventType "team-tourn"]
[EventCountry "HUN"]
[SourceTitle "playchess.com"]
[Source "ChessBase"]
[SourceQuality "1"]
[WhiteTeam "Spain"]
[BlackTeam "Georgia"]
[WhiteTeamCountry "ESP"]
[BlackTeamCountry "GEO"]
[TimeControl "40/5400+30:1800+30"]

{[%evp 17,73,34,28,0,0,0,10,17,14,0,27,15,23,28,18,27,24,30,27,36,36,39,23,35,44,55,52,53,50,54,53,50,80,56,58,46,52,52,63,72,70,68,66,66,61,65,84,43,50,0,0,0,7,4,12,12,17,17]} 1. e4 {[%emt 0:00:05]} e5 {[%emt 0:00:09]} 2. Nf3 {[%emt 0:00:10]} Nc6 {[%emt 0:00:14]} 3. Bb5 {[%emt 0:00:24]} a6 {[%emt 0:00:29]} 4. Ba4 {[%emt 0:00:08]} Nf6 {[%emt 0:00:27]} 5. O-O {[%emt 0:00:34]} b5 {[%emt 0:01:01]} 6. Bb3 {[%emt 0:00:06]} Bc5 {[%emt 0:00:34][%cal Bf8c5,Bc5b6,Bb6a7][%mdl 32]} 7. a4 {[%emt 0:01:04]} Rb8 {[%emt 0:00:57]} 8. c3 {[%emt 0:01:00]} d6 {[%emt 0:00:48]} 9. d4 {[%emt 0:00:35]} Bb6 {[%emt 0:00:06]} 10. a5 {[%emt 0:00:58]} Ba7 {[%emt 0:00:08]} (10... Nxa5 11. Rxa5 Bxa5 12. dxe5) 11. h3 {[%emt 0:01:29]} Bb7 {[%emt 0:02:12]} 12. Be3 {[%emt 0:05:09]} Nxe4 {[%emt 0:00:53]} 13. Re1 {[%emt 0:01:26]} (13. d5 {is interesting.} Bxe3 14. dxc6 Nxf2 15. Qe2) 13... Ne7 {[%emt 0:01:23][%cal Bc6e7,Be7g6,Bg6e5,Be5d3,Bd3b2,Bb2c4][%mdl 32]} 14. Nbd2 {[%emt 0:10:32]} Nxd2 {[%emt 0:00:54]} 15. Bxd2 {[%emt 0:00:30] [#] Threatens to win with Ng5.} O-O $1 {[%emt 0:02:32]} 16. dxe5 {[%emt 0:02:04]} dxe5 {[%emt 0:00:52]} 17. Nxe5 {[%emt 0:01:33] Bg5 would now be deadly.} Ng6 {[%emt 0:00:38]} 18. Be3 {[%emt 0:03:24]} Nxe5 {[%emt 0:00:58]} 19. Qxd8 {[%emt 0:00:43]} Rbxd8 {[%emt 0:00:09][%cal Bb8d8,Bd8d5,Bd5d6][%mdl 32]} 20. Bxa7 {[%emt 0:00:07]} Nd3 {[%emt 0:00:58][%csl LRb2,LRe1]} 21. Re7 {[%emt 0:02:40]} Bd5 {[%emt 0:01:24]} 22. Bxd5 {[%emt 0:01:40]} Rxd5 {[%emt 0:00:09]} 23. Rxc7 {[%emt 0:01:46]} Nxb2 {[%emt 0:00:28]} 24. Bb6 {[%emt 0:02:00]} Re8 {[%emt 0:10:11]} 25. Ra7 {[%emt 0:01:32][%cal Bc7a7,Ba7a6,Ba6a5,Ba5b5][%mdl 32]} Nc4 {[%emt 0:01:58]} 26. Rxa6 {[%emt 0:01:51] [#] aiming for Bc7.} Rd6 {[%emt 0:00:20]} 27. Kh2 {[%emt 0:06:20]} h5 {[%emt 0:05:20]} 28. Rb1 {[%emt 0:04:01]} Nxa5 {[%emt 0:06:26]} 29. Rxa5 {[%emt 0:00:38]} Rxb6 {[%emt 0:00:05]} 30. Rbxb5 {[%emt 0:05:34]} (30. Raxb5 Rxb5 31. Rxb5 Rc8) 30... Rxb5 {[%emt 0:02:36]} 31. Rxb5 $16 {[%emt 0:00:04][%mdl 4096] Endgame. KR-KR} Rc8 {[%emt 0:00:18]} 32. Rb3 {[%emt 0:00:15]} h4 {[%emt 0:02:52]} 33. g3 {[%emt 0:06:56]} ({White should try} 33. Rb4 $14) 33... hxg3+ $11 {[%emt 0:02:38] The position is equal.} 34. fxg3 {[%emt 0:00:24]} g5 {[%emt 0:07:05]} 35. Rb5 {[%emt 0:08:38]} f6 $1 {[%emt 0:01:51]} 36. Rf5 {[%emt 0:00:03]} Rxc3 {[%emt 0:00:36]} 37. Rxf6 {[%emt 0:00:05] Weighted Error Value: White=0.07 (flawless) /Black=0.05 (flawless) .  Mistake:       	White=1     	---        Inaccurate:     	White=1     	Black=2      OK:         	White=14    	Black=9      Best:        	White=1     	Black=2      Strong:       	---       	Black=2} 1/2-1/2

[Event "45th FIDE Olympiad 2024"]
[Site "Budapest"]
[Date "2024.09.16"]
[Round "6.38"]
[White "Amewounou, Komlan Kouessan"]
[Black "Alshnaiber, Yazeed"]
[Result "1/2-1/2"]
[WhiteElo "1825"]
[BlackElo "1889"]
[PlyCount "142"]
[EventDate "2024.09.05"]
[EventType "team-tourn"]
[EventCountry "HUN"]
[WhiteTeam "Togo"]
[BlackTeam "Saudi Arabia"]
[WhiteTeamCountry "TOG"]
[BlackTeamCountry "SAU"]
[TimeControl "40/5400+30:1800+30"]

1. e4 e5 2. Nf3 Nc6 3. Nc3 Nf6 4. Bb5 Nd4 5. Bc4 Bc5 6. d3 d6 7. h3 h6 8. a3 a5 9. Nxd4 Bxd4 10. Ne2 Bb6 11. O-O O-O 12. Be3 c6 13. Qd2 d5 14. exd5 cxd5 15. Bxb6 Qxb6 16. Ba2 Bf5 17. Ng3 Bg6 18. b4 Rfd8 19. Kh2 axb4 20. axb4 Ra4 21. Bb3 Rxb4 22. f4 exf4 23. Rxf4 Rxf4 24. Qxf4 Bxd3 25. cxd3 Qxb3 26. Nf5 Qb2 27. Rf1 Re8 28. Nxh6+ gxh6 29. Qxf6 Qxf6 30. Rxf6 Kg7 31. Rd6 Re5 32. d4 Rf5 33. g4 Rf2+ 34. Kg3 Rb2 35. Rxd5 b5 36. Kf4 b4 37. Rb5 Rb1 38. Ke5 b3 39. Kd6 b2 40. d5 Kf6 41. h4 Kg6 42. Rb6 Kg7 43. h5 Kf6 44. Kd7+ Kg5 45. d6 Kxg4 46. Rb5 Kh4 47. Kd8 Rd1 48. Rxb2 Rxd6+ 49. Ke7 Rd5 50. Kxf7 Kxh5 51. Rh2+ Kg5 52. Rg2+ Kf4 53. Rb2 h5 54. Kg6 h4 55. Rb4+ Kg3 56. Rb3+ Kg2 57. Rb2+ Kg1 58. Rb1+ Kf2 59. Rb2+ Kf3 60. Rb3+ Kg4 61. Rb4+ Kh3 62. Rb3+ Kh2 63. Rb2+ Kh1 64. Rb1+ Kg2 65. Rb2+ Kf3 66. Rb3+ Kf2 67. Rb2+ Ke3 68. Rh2 Rd4 69. Kg5 Kf3 70. Rxh4 Rd5+ 71. Kf6 Kg3 1/2-1/2

[Event "45th FIDE Olympiad 2024"]
[Site "Budapest"]
[Date "2024.09.16"]
[Round "6.39"]
[White "Jobava, Baadur"]
[Black "Pichot, Alan"]
[Result "1/2-1/2"]
[ECO "E32"]
[WhiteElo "2582"]
[BlackElo "2628"]
[Annotator "TA"]
[PlyCount "113"]
[EventDate "2024.09.05"]
[EventType "team-tourn"]
[EventCountry "HUN"]
[SourceTitle "playchess.com"]
[Source "ChessBase"]
[SourceQuality "1"]
[WhiteTeam "Georgia"]
[BlackTeam "Spain"]
[WhiteTeamCountry "GEO"]
[BlackTeamCountry "ESP"]
[TimeControl "40/5400+30:1800+30"]

{[%evp 9,113,20,28,23,29,19,33,16,22,12,24,8,22,14,26,5,2,15,31,16,20,-14,-13,-27,-35,-26,34,39,31,48,43,26,33,24,22,34,26,34,27,25,26,15,16,19,32,33,31,13,10,10,40,31,47,39,66,45,37,2,43,56,54,35,41,49,91,91,91,91,91,91,91,91,91,91,91,84,84,84,84,84,84,84,85,87,87,0,8,0,8,8,8,8,8,8,8,8,8,8,8,8,60,8,8,8,8,8]} 1. d4 {[%emt 0:00:14]} Nf6 {[%emt 0:00:13]} 2. c4 {[%emt 0:00:15]} e6 {[%emt 0:00:28]} 3. Nc3 {[%emt 0:00:13]} Bb4 {[%emt 0:00:50]} 4. Qc2 {[%emt 0:00:17]} d6 {[%emt 0:01:24]} 5. e3 {[%emt 0:00:22]} O-O {[%emt 0:01:26]} 6. Bd3 {[%emt 0:00:10]} c5 {[%emt 0:01:42]} 7. Nge2 {[%emt 0:00:13]} Nc6 {[%emt 0:06:07]} 8. O-O {[%emt 0:01:52] White is slightly better.} d5 {[%emt 0:02:08]} 9. cxd5 {[%emt 0:10:44]} exd5 {[%emt 0:00:19]} 10. dxc5 {[%emt 0:00:16]} Bxc5 {[%emt 0:00:47]} 11. Nb5 {[%emt 0:00:15]} Bb6 {[%emt 0:06:36]} 12. Bd2 {[%emt 0:00:48]} (12. b3 {simplifies} a6 13. Nbd4 Nxd4 14. Nxd4 Re8 15. Bb2) 12... Bg4 {[%emt 0:05:35]} 13. Bc3 {[%emt 0:07:30]} Rc8 {[%emt 0:01:54]} 14. Bf5 {[%emt 0:01:50]} (14. Qa4 {simplifies} Bxe2 15. Bxe2 a6 16. Nd4) 14... Nb4 {[%emt 0:13:31]} 15. Qa4 {[%emt 0:06:14]} (15. Qd1 $5 Bxf5 16. Bxb4 $11) 15... Bxf5 {[%emt 0:16:05]} 16. Bxb4 {[%emt 0:01:42] [#]} Bd3 $1 {[%emt 0:00:18]} 17. Rfe1 {[%emt 0:03:39] [#]} (17. Nbc3 Re8) 17... Qd7 {[%emt 0:06:38]} 18. Nbc3 $14 {[%emt 0:01:27] Hoping for Qxd7.} Rfd8 {[%emt 0:02:03]} 19. Qxd7 {[%emt 0:05:04]} Rxd7 {[%emt 0:00:49]} 20. Na4 {[%emt 0:00:06]} Bxe2 {[%emt 0:09:08]} 21. Nxb6 {[%emt 0:00:21]} axb6 {[%emt 0:00:30]} 22. Rxe2 {[%emt 0:00:30]} d4 {[%emt 0:00:00] Dodges Bc3} 23. exd4 {[%emt 0:00:00]} Nd5 {[%emt 0:06:20]} 24. Bd2 {[%emt 0:04:58]} f6 {[%emt 0:00:12]} 25. Kf1 {[%emt 0:01:35]} Rc4 {[%emt 0:01:07]} 26. Be3 {[%emt 0:00:51]} Kf7 {[%emt 0:01:05]} 27. Rd1 {[%emt 0:00:45]} b5 {[%emt 0:04:03]} 28. a3 {[%emt 0:07:52]} b4 {[%emt 0:00:57]} 29. Rd3 {[%emt 0:04:37]} b5 {[%emt 0:02:33]} 30. axb4 {[%emt 0:01:43]} Nxb4 {[%emt 0:00:14]} 31. Rb3 {[%emt 0:00:21]} Rd5 {[%emt 0:04:54]} 32. Rc3 {[%emt 0:00:29]} Rd7 {[%emt 0:00:24]} 33. Ke1 {[%emt 0:08:44]} Rxc3 {[%emt 0:01:23]} 34. bxc3 $11 {[%emt 0:00:06][%mdl 4096] Endgame. KRB-KRN} Nd5 {[%emt 0:00:05]} 35. Rc2 {[%emt 0:02:14]} Rc7 {[%emt 0:01:46]} 36. Kd2 {[%emt 0:00:12]} b4 {[%emt 0:02:03]} 37. cxb4 {[%emt 0:01:52] Rxc7+ would now be deadly.} Rxc2+ {[%emt 0:00:15]} 38. Kxc2 {[%emt 0:00:03] Strongly threatening Kb3.} Nxb4+ $16 {[%emt 0:00:06] KB-KN} 39. Kc3 {[%emt 0:00:03]} Nd5+ {[%emt 0:00:22]} 40. Kc4 {[%emt 0:00:04]} Ke6 {[%emt 0:00:07]} 41. Kc5 {[%emt 0:32:46]} h5 {[%emt 0:06:41]} 42. h4 {[%emt 0:00:00]} Ne7 {[%emt 0:00:49]} 43. Bd2 {[%emt 0:00:00]} Nd5 {[%emt 0:00:45]} 44. g3 {[%emt 0:00:00]} g6 {[%emt 0:02:36]} 45. Bc1 {[%emt 0:00:00]} Ne7 {[%emt 0:03:00]} 46. Be3 {[%emt 0:00:00]} Nd5 {[%emt 0:00:46]} 47. Kc6 {[%emt 0:00:00]} (47. Bd2 $16) 47... Ne7+ $11 {[%emt 0:02:38]} 48. Kc7 {[%emt 0:00:00]} Kd5 {[%emt 0:03:09]} 49. Kd7 {[%emt 0:00:00]} Nf5 {[%emt 0:00:06]} 50. Ke8 {[%emt 0:00:00] Threatens to win with Kf7.} g5 $1 {[%emt 0:00:54]} 51. hxg5 {[%emt 0:00:00]} fxg5 {[%emt 0:00:24]} 52. Bxg5 {[%emt 0:00:00] Kf7 is the strong threat.} Nxd4 {[%emt 0:00:35]} 53. Kf7 {[%emt 0:00:07] aiming for Kg6.} Ke4 {[%emt 0:00:06]} 54. Kg6 {[%emt 0:00:14]} Kf3 {[%emt 0:00:05]} 55. Be3 {[%emt 0:00:48]} (55. Kxh5 $14 Kxf2 56. Kh6) 55... Ne2 {[%emt 0:00:15]} 56. Kxh5 {[%emt 0:00:04] Threatening mate with g4.} Nxg3+ {[%emt 0:00:04]} 57. fxg3 {[%emt 0:00:03] Weighted Error Value: White=0.10 (very precise) /Black=0.07 (flawless) .  Mistake:       	White=2     	Black=1      Inaccurate:     	White=2     	Black=4      OK:         	White=21    	Black=24     Best:        	---       	Black=4      Strong:       	---       	Black=2} 1/2-1/2